[Event "Titled Tuesday Blitz November 22 Late 2022"]
[White "Ferreira, Vitor Hugo Vieira"]
[Black "Corrales Jimenez, Fidel"]
[WhiteFideId "2119765"]
[BlackFideId "3506690"]
[WhiteElo "2168"]
[BlackElo "2541"]
[Result "0-1"]
[Round "02"]
[TimeControl "180+1"]
[Date "2022.11.23"]
[WhiteClock "0:02:06"]
[BlackClock "0:02:27"]

1. e4 {[%clk 0:03:00]}  c6 {[%clk 0:02:59]} 2. d4 {[%clk 0:03:01]}  d5 {[%clk 0:03:00]} 3. exd5 {[%clk 0:03:01]}  cxd5 {[%clk 0:03:00]} 4. Bd3 {[%clk 0:03:01]}  Nc6 {[%clk 0:03:00]} 5. c3 {[%clk 0:03:02]}  Nf6 {[%clk 0:03:01]} 6. Ne2 {[%clk 0:02:59]}  Bg4 {[%clk 0:03:01]} 7. O-O {[%clk 0:02:58]}  e6 {[%clk 0:03:01]} 8. Qe1 {[%clk 0:02:58]}  Bd6 {[%clk 0:02:58]} 9. f3 {[%clk 0:02:58]}  Bh5 {[%clk 0:02:57]} 10. Qh4 {[%clk 0:02:57]}  O-O {[%clk 0:02:43]} 11. Nf4 {[%clk 0:02:57]}  Bg6 {[%clk 0:02:42]} 12. Nxg6 {[%clk 0:02:57]}  hxg6 {[%clk 0:02:43]} 13. Bg5 {[%clk 0:02:56]}  Qc7 {[%clk 0:02:37]} 14. Bxf6 {[%clk 0:02:46]}  gxf6 {[%clk 0:02:37]} 15. Qxf6 {[%clk 0:02:46]}  Be7 {[%clk 0:02:30]} 16. Qf4 {[%clk 0:02:06]}  Qxf4 {[%clk 0:02:27]} 0-1


[Site "https://www.chess.com"]

[Event "Titled Tuesday Blitz November 22 Late 2022"]
[White "Figorito, Nick"]
[Black "D`Arruda, Ricardo D."]
[WhiteFideId "30923689"]
[BlackFideId "100692"]
[WhiteElo "2286"]
[BlackElo "2521"]
[Result "0-1"]
[Round "02"]
[TimeControl "180+1"]
[Date "2022.11.23"]
[WhiteClock "0:00:02"]
[BlackClock "0:00:19"]

1. Nf3 {[%clk 0:03:00]}  d5 {[%clk 0:02:59]} 2. g3 {[%clk 0:03:01]}  Nf6 {[%clk 0:02:58]} 3. Bg2 {[%clk 0:03:02]}  c5 {[%clk 0:02:58]} 4. O-O {[%clk 0:03:02]}  Nc6 {[%clk 0:02:58]} 5. d4 {[%clk 0:03:03]}  cxd4 {[%clk 0:02:57]} 6. Nxd4 {[%clk 0:03:04]}  e6 {[%clk 0:02:57]} 7. c4 {[%clk 0:03:04]}  Be7 {[%clk 0:02:56]} 8. Nc3 {[%clk 0:03:04]}  O-O {[%clk 0:02:55]} 9. Bg5 {[%clk 0:03:03]}  h6 {[%clk 0:02:54]} 10. Bxf6 {[%clk 0:03:00]}  Bxf6 {[%clk 0:02:55]} 11. Nxc6 {[%clk 0:02:59]}  bxc6 {[%clk 0:02:55]} 12. Rc1 {[%clk 0:02:56]}  Qa5 {[%clk 0:02:52]} 13. Qd2 {[%clk 0:02:39]}  Rd8 {[%clk 0:02:46]} 14. Rfd1 {[%clk 0:02:29]}  dxc4 {[%clk 0:02:14]} 15. Qc2 {[%clk 0:02:27]}  Ba6 {[%clk 0:02:03]} 16. Bxc6 {[%clk 0:02:19]}  Rac8 {[%clk 0:02:02]} 17. Bg2 {[%clk 0:02:17]}  Rxd1+ {[%clk 0:01:53]} 18. Rxd1 {[%clk 0:02:17]}  Rd8 {[%clk 0:01:54]} 19. Rxd8+ {[%clk 0:02:14]}  Qxd8 {[%clk 0:01:55]} 20. Qa4 {[%clk 0:02:02]}  Qc8 {[%clk 0:01:45]} 21. h4 {[%clk 0:01:44]}  Bd4 {[%clk 0:01:37]} 22. e3 {[%clk 0:01:41]}  Be5 {[%clk 0:01:34]} 23. Qc6 {[%clk 0:01:34]}  Qxc6 {[%clk 0:01:31]} 24. Bxc6 {[%clk 0:01:35]}  Kf8 {[%clk 0:01:30]} 25. f4 {[%clk 0:01:17]}  Bf6 {[%clk 0:01:12]} 26. Kf2 {[%clk 0:01:13]}  Ke7 {[%clk 0:01:12]} 27. Ke2 {[%clk 0:01:01]}  Kd6 {[%clk 0:01:10]} 28. Be8 {[%clk 0:00:59]}  Ke7 {[%clk 0:01:09]} 29. Bc6 {[%clk 0:00:59]}  g5 {[%clk 0:01:02]} 30. fxg5 {[%clk 0:00:57]}  hxg5 {[%clk 0:01:02]} 31. h5 {[%clk 0:00:55]}  Bg7 {[%clk 0:01:03]} 32. g4 {[%clk 0:00:55]}  f5 {[%clk 0:01:03]} 33. gxf5 {[%clk 0:00:52]}  exf5 {[%clk 0:01:03]} 34. Bd5 {[%clk 0:00:41]}  Kd6 {[%clk 0:01:01]} 35. Bf7 {[%clk 0:00:40]}  Ke5 {[%clk 0:00:51]} 36. Bg6 {[%clk 0:00:37]}  g4 {[%clk 0:00:50]} 37. Kf2 {[%clk 0:00:36]}  Bb7 {[%clk 0:00:50]} 38. Ne2 {[%clk 0:00:32]}  Bh6 {[%clk 0:00:37]} 39. Nc3 {[%clk 0:00:25]}  Bf8 {[%clk 0:00:31]} 40. Nb5 {[%clk 0:00:19]}  Bc5 {[%clk 0:00:30]} 41. h6 {[%clk 0:00:13]}  Bf8 {[%clk 0:00:23]} 42. h7 {[%clk 0:00:12]}  Bg7 {[%clk 0:00:23]} 43. Nc3 {[%clk 0:00:12]}  f4 {[%clk 0:00:22]} 44. exf4+ {[%clk 0:00:12]}  Kxf4 {[%clk 0:00:23]} 45. Nb5 {[%clk 0:00:10]}  g3+ {[%clk 0:00:22]} 46. Kg1 {[%clk 0:00:10]}  Bxb2 {[%clk 0:00:22]} 47. Nxa7 {[%clk 0:00:03]}  Bd4+ {[%clk 0:00:21]} 48. Kf1 {[%clk 0:00:04]}  g2+ {[%clk 0:00:21]} 49. Ke2 {[%clk 0:00:04]}  Bf3+ {[%clk 0:00:19]} 50. Kd2 {[%clk 0:00:02]}  g1=Q {[%clk 0:00:20]} 51. Kc2 {[%clk 0:00:01]}  Qf2+ {[%clk 0:00:19]} 52. Kb1 {[%clk 0:00:02]}  Qb2# {[%clk 0:00:19]} 0-1


[Site "https://www.chess.com"]

[Event "Titled Tuesday Blitz November 22 Late 2022"]
[White "Garcia Ramos, Daniel"]
[Black "Kollars, Dmitrij"]
[WhiteFideId "32010311"]
[BlackFideId "12909572"]
[WhiteElo "2357"]
[BlackElo "2584"]
[Result "1/2-1/2"]
[Round "02"]
[TimeControl "180+1"]
[Date "2022.11.22"]
[WhiteClock "0:00:01"]
[BlackClock "0:00:04"]

1. e4 {[%clk 0:03:00]}  c6 {[%clk 0:02:58]} 2. d4 {[%clk 0:02:58]}  d5 {[%clk 0:02:59]} 3. Nd2 {[%clk 0:02:58]}  dxe4 {[%clk 0:02:59]} 4. Nxe4 {[%clk 0:02:59]}  Nf6 {[%clk 0:02:59]} 5. Nxf6+ {[%clk 0:02:59]}  exf6 {[%clk 0:03:00]} 6. c3 {[%clk 0:02:59]}  Bd6 {[%clk 0:03:00]} 7. Bd3 {[%clk 0:02:58]}  O-O {[%clk 0:02:58]} 8. Qc2 {[%clk 0:02:58]}  Re8+ {[%clk 0:02:58]} 9. Ne2 {[%clk 0:02:59]}  h5 {[%clk 0:02:59]} 10. O-O {[%clk 0:02:58]}  Nd7 {[%clk 0:02:58]} 11. Ng3 {[%clk 0:02:57]}  h4 {[%clk 0:02:42]} 12. Nf5 {[%clk 0:02:55]}  Qc7 {[%clk 0:02:42]} 13. h3 {[%clk 0:02:45]}  c5 {[%clk 0:02:30]} 14. Nxh4 {[%clk 0:01:52]}  cxd4 {[%clk 0:02:30]} 15. cxd4 {[%clk 0:01:53]}  Qxc2 {[%clk 0:02:30]} 16. Bxc2 {[%clk 0:01:53]}  Nb6 {[%clk 0:02:31]} 17. Nf5 {[%clk 0:01:43]}  Bf8 {[%clk 0:02:31]} 18. Ne3 {[%clk 0:01:41]}  Be6 {[%clk 0:02:24]} 19. Rd1 {[%clk 0:01:36]}  Rad8 {[%clk 0:02:18]} 20. Bb3 {[%clk 0:01:33]}  g6 {[%clk 0:01:51]} 21. d5 {[%clk 0:01:28]}  Bc8 {[%clk 0:01:48]} 22. Bd2 {[%clk 0:01:26]}  f5 {[%clk 0:01:48]} 23. Bc3 {[%clk 0:01:25]}  Bd7 {[%clk 0:01:25]} 24. a4 {[%clk 0:01:23]}  Nc8 {[%clk 0:01:21]} 25. a5 {[%clk 0:01:13]}  Nd6 {[%clk 0:01:21]} 26. Bd4 {[%clk 0:01:14]}  Nb5 {[%clk 0:01:20]} 27. Bf6 {[%clk 0:01:10]}  Rc8 {[%clk 0:01:10]} 28. Ba4 {[%clk 0:01:05]}  Re4 {[%clk 0:01:02]} 29. Bb3 {[%clk 0:00:50]}  Nd6 {[%clk 0:00:58]} 30. a6 {[%clk 0:00:47]}  Rb4 {[%clk 0:00:52]} 31. axb7 {[%clk 0:00:41]}  Rxb7 {[%clk 0:00:53]} 32. Ba4 {[%clk 0:00:36]}  Bxa4 {[%clk 0:00:38]} 33. Rxa4 {[%clk 0:00:37]}  Bg7 {[%clk 0:00:38]} 34. Bxg7 {[%clk 0:00:35]}  Kxg7 {[%clk 0:00:39]} 35. Rda1 {[%clk 0:00:32]}  Rxb2 {[%clk 0:00:29]} 36. Rxa7 {[%clk 0:00:32]}  Ne4 {[%clk 0:00:29]} 37. R7a2 {[%clk 0:00:23]}  Rcb8 {[%clk 0:00:29]} 38. Rxb2 {[%clk 0:00:19]}  Rxb2 {[%clk 0:00:30]} 39. Rd1 {[%clk 0:00:10]}  f4 {[%clk 0:00:17]} 40. Nc4 {[%clk 0:00:06]}  Rc2 {[%clk 0:00:12]} 41. d6 {[%clk 0:00:05]}  Nc5 {[%clk 0:00:11]} 42. Ne5 {[%clk 0:00:03]}  Re2 {[%clk 0:00:09]} 43. d7 {[%clk 0:00:03]}  Ne6 {[%clk 0:00:08]} 44. Nc6 {[%clk 0:00:03]}  g5 {[%clk 0:00:08]} 45. d8=Q {[%clk 0:00:03]}  Nxd8 {[%clk 0:00:09]} 46. Nxd8 {[%clk 0:00:04]}  f6 {[%clk 0:00:09]} 47. f3 {[%clk 0:00:04]}  Kg6 {[%clk 0:00:09]} 48. Nc6 {[%clk 0:00:04]}  Rc2 {[%clk 0:00:09]} 49. Ne7+ {[%clk 0:00:04]}  Kf7 {[%clk 0:00:10]} 50. Nf5 {[%clk 0:00:04]}  Ra2 {[%clk 0:00:10]} 51. Nd4 {[%clk 0:00:03]}  Kg6 {[%clk 0:00:10]} 52. Kf1 {[%clk 0:00:04]}  Ra4 {[%clk 0:00:11]} 53. Ne2 {[%clk 0:00:04]}  Ra2 {[%clk 0:00:11]} 54. Kf2 {[%clk 0:00:04]}  Rb2 {[%clk 0:00:11]} 55. Rd8 {[%clk 0:00:05]}  Kf7 {[%clk 0:00:11]} 56. Rd7+ {[%clk 0:00:04]}  Ke6 {[%clk 0:00:11]} 57. Ra7 {[%clk 0:00:05]}  Kf5 {[%clk 0:00:12]} 58. Ra5+ {[%clk 0:00:05]}  Kg6 {[%clk 0:00:12]} 59. Kf1 {[%clk 0:00:05]}  Rb1+ {[%clk 0:00:12]} 60. Kf2 {[%clk 0:00:05]}  Rb2 {[%clk 0:00:12]} 61. Rd5 {[%clk 0:00:05]}  Rc2 {[%clk 0:00:13]} 62. Rd1 {[%clk 0:00:06]}  Rb2 {[%clk 0:00:13]} 63. Re1 {[%clk 0:00:06]}  Kh5 {[%clk 0:00:13]} 64. g3 {[%clk 0:00:07]}  fxg3+ {[%clk 0:00:11]} 65. Kxg3 {[%clk 0:00:07]}  Rd2 {[%clk 0:00:10]} 66. f4 {[%clk 0:00:05]}  Rd3+ {[%clk 0:00:09]} 67. Kg2 {[%clk 0:00:05]}  Kh4 {[%clk 0:00:09]} 68. fxg5 {[%clk 0:00:05]}  fxg5 {[%clk 0:00:10]} 69. Rf1 {[%clk 0:00:02]}  Rxh3 {[%clk 0:00:08]} 70. Rf8 {[%clk 0:00:02]}  Ra3 {[%clk 0:00:07]} 71. Rh8+ {[%clk 0:00:02]}  Kg4 {[%clk 0:00:08]} 72. Re8 {[%clk 0:00:02]}  Rb3 {[%clk 0:00:08]} 73. Re4+ {[%clk 0:00:02]}  Kf5 {[%clk 0:00:07]} 74. Re8 {[%clk 0:00:02]}  Ra3 {[%clk 0:00:07]} 75. Kf2 {[%clk 0:00:02]}  Ra2 {[%clk 0:00:06]} 76. Rf8+ {[%clk 0:00:03]}  Kg6 {[%clk 0:00:06]} 77. Ke3 {[%clk 0:00:03]}  Kg7 {[%clk 0:00:07]} 78. Rf5 {[%clk 0:00:03]}  Ra3+ {[%clk 0:00:07]} 79. Kf2 {[%clk 0:00:03]}  Kg6 {[%clk 0:00:08]} 80. Rf3 {[%clk 0:00:03]}  Ra7 {[%clk 0:00:08]} 81. Kg3 {[%clk 0:00:02]}  Kh5 {[%clk 0:00:08]} 82. Kf2 {[%clk 0:00:03]}  Ra2 {[%clk 0:00:08]} 83. Rh3+ {[%clk 0:00:03]}  Kg6 {[%clk 0:00:08]} 84. Re3 {[%clk 0:00:04]}  g4 {[%clk 0:00:08]} 85. Kg3 {[%clk 0:00:04]}  Kf5 {[%clk 0:00:08]} 86. Nd4+ {[%clk 0:00:04]}  Kg5 {[%clk 0:00:08]} 87. Re5+ {[%clk 0:00:05]}  Kf6 {[%clk 0:00:09]} 88. Rf5+ {[%clk 0:00:05]}  Kg6 {[%clk 0:00:09]} 89. Kxg4 {[%clk 0:00:05]}  Ra4 {[%clk 0:00:09]} 90. Rf4 {[%clk 0:00:06]}  Ra1 {[%clk 0:00:10]} 91. Nf3 {[%clk 0:00:05]}  Rd1 {[%clk 0:00:09]} 92. Ne5+ {[%clk 0:00:06]}  Kg7 {[%clk 0:00:09]} 93. Rf7+ {[%clk 0:00:05]}  Kg8 {[%clk 0:00:08]} 94. Ra7 {[%clk 0:00:05]}  Rf1 {[%clk 0:00:07]} 95. Kg5 {[%clk 0:00:05]}  Kf8 {[%clk 0:00:07]} 96. Nd7+ {[%clk 0:00:05]}  Ke8 {[%clk 0:00:07]} 97. Nf6+ {[%clk 0:00:05]}  Kd8 {[%clk 0:00:07]} 98. Kg6 {[%clk 0:00:06]}  Kc8 {[%clk 0:00:07]} 99. Kf7 {[%clk 0:00:06]}  Re1 {[%clk 0:00:08]} 100. Ne8 {[%clk 0:00:03]}  Kd8 {[%clk 0:00:05]} 101. Nf6 {[%clk 0:00:03]}  Kc8 {[%clk 0:00:05]} 102. Ng8 {[%clk 0:00:03]}  Kd8 {[%clk 0:00:05]} 103. Nh6 {[%clk 0:00:03]}  Kc8 {[%clk 0:00:04]} 104. Nf5 {[%clk 0:00:03]}  Kb8 {[%clk 0:00:04]} 105. Rd7 {[%clk 0:00:03]}  Kc8 {[%clk 0:00:04]} 106. Rd3 {[%clk 0:00:02]}  Kc7 {[%clk 0:00:04]} 107. Kf6 {[%clk 0:00:02]}  Kb6 {[%clk 0:00:04]} 108. Ne3 {[%clk 0:00:03]}  Kc5 {[%clk 0:00:04]} 109. Ke5 {[%clk 0:00:03]}  Rh1 {[%clk 0:00:05]} 110. Rc3+ {[%clk 0:00:03]}  Kb4 {[%clk 0:00:05]} 111. Nd5+ {[%clk 0:00:03]}  Kb5 {[%clk 0:00:06]} 112. Rb3+ {[%clk 0:00:03]}  Kc5 {[%clk 0:00:06]} 113. Rc3+ {[%clk 0:00:04]}  Kb5 {[%clk 0:00:06]} 114. Rc8 {[%clk 0:00:04]}  Rh5+ {[%clk 0:00:06]} 115. Ke4 {[%clk 0:00:05]}  Rh4+ {[%clk 0:00:06]} 116. Kd3 {[%clk 0:00:04]}  Rh3+ {[%clk 0:00:06]} 117. Ne3 {[%clk 0:00:05]}  Kb6 {[%clk 0:00:07]} 118. Rc1 {[%clk 0:00:05]}  Kb5 {[%clk 0:00:07]} 119. Kd4 {[%clk 0:00:05]}  Rh4+ {[%clk 0:00:06]} 120. Ke5 {[%clk 0:00:05]}  Rh5+ {[%clk 0:00:07]} 121. Nf5 {[%clk 0:00:05]}  Kb4 {[%clk 0:00:08]} 122. Ke4 {[%clk 0:00:05]}  Kb5 {[%clk 0:00:06]} 123. Rc8 {[%clk 0:00:05]}  Kb6 {[%clk 0:00:06]} 124. Ne7 {[%clk 0:00:04]}  Rh4+ {[%clk 0:00:06]} 125. Kf5 {[%clk 0:00:04]}  Rh1 {[%clk 0:00:07]} 126. Nd5+ {[%clk 0:00:04]}  Kb5 {[%clk 0:00:07]} 127. Ke6 {[%clk 0:00:04]}  Rh6+ {[%clk 0:00:07]} 128. Ke5 {[%clk 0:00:04]}  Rh5+ {[%clk 0:00:07]} 129. Ke4 {[%clk 0:00:05]}  Rh4+ {[%clk 0:00:07]} 130. Nf4 {[%clk 0:00:04]}  Kb6 {[%clk 0:00:07]} 131. Rc2 {[%clk 0:00:05]}  Kb5 {[%clk 0:00:07]} 132. Ke5 {[%clk 0:00:05]}  Kb6 {[%clk 0:00:06]} 133. Rf2 {[%clk 0:00:05]}  Kb5 {[%clk 0:00:06]} 134. Kd5 {[%clk 0:00:04]}  Rg4 {[%clk 0:00:06]} 135. Ne6 {[%clk 0:00:03]}  Rb4 {[%clk 0:00:05]} 136. Rf8 {[%clk 0:00:03]}  Rh4 {[%clk 0:00:04]} 137. Rb8+ {[%clk 0:00:02]}  Ka6 {[%clk 0:00:04]} 138. Kc6 {[%clk 0:00:02]}  Ka5 {[%clk 0:00:04]} 139. Nd8 {[%clk 0:00:01]} 1/2-1/2


[Site "https://www.chess.com"]

[Event "Titled Tuesday Blitz November 22 Late 2022"]
[White "Gerbelli Neto, Eduardo"]
[Black "Karas, Marek"]
[WhiteFideId "2103281"]
[BlackFideId "14928558"]
[WhiteElo "2178"]
[BlackElo "2220"]
[Result "1-0"]
[Round "02"]
[TimeControl "180+1"]
[Date "2022.11.23"]
[WhiteClock "0:00:10"]
[BlackClock "0:00:04"]

1. e4 {[%clk 0:03:00]}  g6 {[%clk 0:02:59]} 2. Nc3 {[%clk 0:03:00]}  Bg7 {[%clk 0:02:55]} 3. f4 {[%clk 0:03:00]}  d5 {[%clk 0:02:55]} 4. Nxd5 {[%clk 0:02:58]}  f5 {[%clk 0:02:53]} 5. d3 {[%clk 0:02:52]}  e5 {[%clk 0:02:51]} 6. fxe5 {[%clk 0:02:46]}  fxe4 {[%clk 0:02:48]} 7. dxe4 {[%clk 0:02:46]}  Bxe5 {[%clk 0:02:45]} 8. Nf3 {[%clk 0:02:46]}  Bg7 {[%clk 0:02:36]} 9. Bg5 {[%clk 0:02:37]}  Qd7 {[%clk 0:02:32]} 10. Bc4 {[%clk 0:02:12]}  c6 {[%clk 0:02:25]} 11. Nc3 {[%clk 0:02:09]}  Qxd1+ {[%clk 0:02:15]} 12. Rxd1 {[%clk 0:02:10]}  Nd7 {[%clk 0:02:15]} 13. O-O {[%clk 0:01:56]}  h6 {[%clk 0:02:07]} 14. Be3 {[%clk 0:01:46]}  Ngf6 {[%clk 0:02:01]} 15. Nd4 {[%clk 0:01:17]}  Ne5 {[%clk 0:01:58]} 16. Bb3 {[%clk 0:01:03]}  Bg4 {[%clk 0:01:33]} 17. Ne6 {[%clk 0:00:51]}  Bxe6 {[%clk 0:01:17]} 18. Bxe6 {[%clk 0:00:52]}  b6 {[%clk 0:01:09]} 19. Bf4 {[%clk 0:00:47]}  Nfd7 {[%clk 0:00:51]} 20. Ne2 {[%clk 0:00:16]}  Ke7 {[%clk 0:00:47]} 21. Bh3 {[%clk 0:00:15]}  Rad8 {[%clk 0:00:41]} 22. Nd4 {[%clk 0:00:15]}  g5 {[%clk 0:00:29]} 23. Bg3 {[%clk 0:00:14]}  Bf6 {[%clk 0:00:23]} 24. Bf5 {[%clk 0:00:14]}  c5 {[%clk 0:00:16]} 25. Ne6 {[%clk 0:00:13]}  Rde8 {[%clk 0:00:15]} 26. Nc7 {[%clk 0:00:14]}  Rd8 {[%clk 0:00:13]} 27. Nd5+ {[%clk 0:00:14]}  Kf7 {[%clk 0:00:07]} 28. Bxd7 {[%clk 0:00:15]}  Nxd7 {[%clk 0:00:05]} 29. e5 {[%clk 0:00:14]}  Kg6 {[%clk 0:00:05]} 30. exf6 {[%clk 0:00:14]}  Rhf8 {[%clk 0:00:02]} 31. Ne7+ {[%clk 0:00:14]}  Kf7 {[%clk 0:00:02]} 32. Nd5 {[%clk 0:00:14]}  Nb8 {[%clk 0:00:01]} 33. c4 {[%clk 0:00:13]}  Nc6 {[%clk 0:00:02]} 34. Rfe1 {[%clk 0:00:11]}  Nd4 {[%clk 0:00:01]} 35. Re7+ {[%clk 0:00:11]}  Kg6 {[%clk 0:00:02]} 36. Rg7+ {[%clk 0:00:10]}  Kh5 {[%clk 0:00:03]} 37. Bf2 {[%clk 0:00:10]}  Ne6 {[%clk 0:00:02]} 38. Rxa7 {[%clk 0:00:09]}  Nf4 {[%clk 0:00:03]} 39. h3 {[%clk 0:00:09]}  Rxf6 {[%clk 0:00:02]} 40. g4+ {[%clk 0:00:08]}  Kg6 {[%clk 0:00:01]} 41. Re1 {[%clk 0:00:04]}  Nxd5 {[%clk 0:00:01]} 42. cxd5 {[%clk 0:00:03]}  Rxd5 {[%clk 0:00:02]} 43. Ree7 {[%clk 0:00:02]}  Rc6 {[%clk 0:00:01]} 44. Rg7+ {[%clk 0:00:03]}  Kf6 {[%clk 0:00:02]} 45. Raf7+ {[%clk 0:00:04]}  Ke6 {[%clk 0:00:02]} 46. Rf5 {[%clk 0:00:05]}  Rxf5 {[%clk 0:00:02]} 47. gxf5+ {[%clk 0:00:05]}  Kxf5 {[%clk 0:00:03]} 48. Rd7 {[%clk 0:00:05]}  Ke4 {[%clk 0:00:04]} 49. Rd2 {[%clk 0:00:06]}  Kf3 {[%clk 0:00:04]} 50. Rd3+ {[%clk 0:00:06]}  Ke2 {[%clk 0:00:04]} 51. Rb3 {[%clk 0:00:06]}  c4 {[%clk 0:00:04]} 52. Rc3 {[%clk 0:00:06]}  b5 {[%clk 0:00:04]} 53. Kg2 {[%clk 0:00:06]}  Kd2 {[%clk 0:00:05]} 54. Re3 {[%clk 0:00:06]}  b4 {[%clk 0:00:04]} 55. Kf3 {[%clk 0:00:06]}  c3 {[%clk 0:00:04]} 56. bxc3 {[%clk 0:00:06]}  bxc3 {[%clk 0:00:05]} 57. Be1+ {[%clk 0:00:06]}  Kc2 {[%clk 0:00:05]} 58. Rxc3+ {[%clk 0:00:06]}  Rxc3+ {[%clk 0:00:06]} 59. Bxc3 {[%clk 0:00:07]}  Kxc3 {[%clk 0:00:06]} 60. Kg4 {[%clk 0:00:08]}  Kd4 {[%clk 0:00:06]} 61. Kh5 {[%clk 0:00:09]}  Ke5 {[%clk 0:00:06]} 62. Kxh6 {[%clk 0:00:09]}  Kf5 {[%clk 0:00:07]} 63. Kh5 {[%clk 0:00:10]}  Kf4 {[%clk 0:00:07]} 64. a4 {[%clk 0:00:09]}  Kg3 {[%clk 0:00:03]} 65. Kxg5 {[%clk 0:00:09]}  Kxh3 {[%clk 0:00:04]} 66. a5 {[%clk 0:00:10]} 1-0


[Site "https://www.chess.com"]

[Event "Titled Tuesday Blitz November 22 Late 2022"]
[White "Goltsev, Dmitry"]
[Black "Rubio Tent, Francisco"]
[WhiteFideId "24176710"]
[BlackFideId "2238233"]
[WhiteElo "2289"]
[BlackElo "2211"]
[Result "1-0"]
[Round "02"]
[TimeControl "180+1"]
[Date "2022.11.23"]
[WhiteClock "0:00:39"]
[BlackClock "0:00:32"]

1. e4 {[%clk 0:03:00]}  c6 {[%clk 0:03:00]} 2. d4 {[%clk 0:03:00]}  d5 {[%clk 0:03:01]} 3. Nc3 {[%clk 0:03:01]}  dxe4 {[%clk 0:03:01]} 4. Nxe4 {[%clk 0:03:02]}  Nf6 {[%clk 0:03:01]} 5. Nxf6+ {[%clk 0:03:02]}  exf6 {[%clk 0:03:02]} 6. c3 {[%clk 0:03:02]}  Bf5 {[%clk 0:03:01]} 7. Bd3 {[%clk 0:03:03]}  Bxd3 {[%clk 0:03:01]} 8. Qxd3 {[%clk 0:03:04]}  Bd6 {[%clk 0:03:02]} 9. Nf3 {[%clk 0:03:04]}  O-O {[%clk 0:03:01]} 10. O-O {[%clk 0:03:04]}  Nd7 {[%clk 0:03:02]} 11. Re1 {[%clk 0:03:02]}  Qc7 {[%clk 0:03:01]} 12. Bd2 {[%clk 0:03:01]}  Rad8 {[%clk 0:03:00]} 13. h3 {[%clk 0:03:00]}  Rfe8 {[%clk 0:03:00]} 14. Rxe8+ {[%clk 0:02:57]}  Rxe8 {[%clk 0:03:01]} 15. Re1 {[%clk 0:02:58]}  Rxe1+ {[%clk 0:02:58]} 16. Nxe1 {[%clk 0:02:58]}  b5 {[%clk 0:02:57]} 17. Nc2 {[%clk 0:02:57]}  Nb6 {[%clk 0:02:55]} 18. Qe4 {[%clk 0:02:54]}  Nc4 {[%clk 0:02:44]} 19. Bc1 {[%clk 0:02:51]}  Qd7 {[%clk 0:02:36]} 20. b3 {[%clk 0:02:49]}  Nb6 {[%clk 0:02:36]} 21. Ba3 {[%clk 0:02:37]}  Bxa3 {[%clk 0:02:25]} 22. Nxa3 {[%clk 0:02:38]}  Qe6 {[%clk 0:02:26]} 23. f3 {[%clk 0:02:22]}  f5 {[%clk 0:02:09]} 24. Qxe6 {[%clk 0:02:09]}  fxe6 {[%clk 0:02:10]} 25. Kf2 {[%clk 0:02:08]}  Nd5 {[%clk 0:01:59]} 26. c4 {[%clk 0:02:04]}  bxc4 {[%clk 0:01:49]} 27. Nxc4 {[%clk 0:02:05]}  Nb4 {[%clk 0:01:48]} 28. a3 {[%clk 0:02:03]}  Nc2 {[%clk 0:01:45]} 29. b4 {[%clk 0:01:57]}  Nxd4 {[%clk 0:01:32]} 30. Ke3 {[%clk 0:01:57]}  Nb5 {[%clk 0:01:26]} 31. a4 {[%clk 0:01:53]}  Nc3 {[%clk 0:01:26]} 32. Kd4 {[%clk 0:01:36]}  Nxa4 {[%clk 0:01:25]} 33. Ne5 {[%clk 0:01:37]}  Nb6 {[%clk 0:00:45]} 34. Nxc6 {[%clk 0:01:35]}  Nc8 {[%clk 0:00:46]} 35. Nd8 {[%clk 0:01:27]}  g6 {[%clk 0:00:42]} 36. Ke5 {[%clk 0:01:21]}  Kf8 {[%clk 0:00:42]} 37. Kxe6 {[%clk 0:01:19]}  Ne7 {[%clk 0:00:30]} 38. Kd6 {[%clk 0:00:56]}  f4 {[%clk 0:00:29]} 39. Ne6+ {[%clk 0:00:44]}  Kf7 {[%clk 0:00:29]} 40. Nxf4 {[%clk 0:00:43]}  Kf6 {[%clk 0:00:30]} 41. Nd5+ {[%clk 0:00:40]}  Nxd5 {[%clk 0:00:30]} 42. Kxd5 {[%clk 0:00:41]}  Kf5 {[%clk 0:00:31]} 43. g3 {[%clk 0:00:40]}  h6 {[%clk 0:00:30]} 44. Kc6 {[%clk 0:00:39]}  h5 {[%clk 0:00:31]} 45. h4 {[%clk 0:00:38]}  g5 {[%clk 0:00:32]} 46. hxg5 {[%clk 0:00:39]} 1-0


[Site "https://www.chess.com"]

[Event "Titled Tuesday Blitz November 22 Late 2022"]
[White "Golubev, Mikhail"]
[Black "Lashkin, Jegor"]
[WhiteFideId "14100983"]
[BlackFideId "13907808"]
[WhiteElo "2374"]
[BlackElo "2368"]
[Result "0-1"]
[Round "02"]
[TimeControl "180+1"]
[Date "2022.11.23"]
[WhiteClock "0:00:04"]
[BlackClock "0:00:57"]

1. e4 {[%clk 0:02:58]}  c5 {[%clk 0:02:59]} 2. Nf3 {[%clk 0:02:57]}  d6 {[%clk 0:02:59]} 3. d4 {[%clk 0:02:57]}  cxd4 {[%clk 0:03:00]} 4. Nxd4 {[%clk 0:02:57]}  Nf6 {[%clk 0:03:01]} 5. Nc3 {[%clk 0:02:58]}  a6 {[%clk 0:03:02]} 6. Bc4 {[%clk 0:02:58]}  e6 {[%clk 0:03:02]} 7. O-O {[%clk 0:02:57]}  b5 {[%clk 0:03:02]} 8. Bb3 {[%clk 0:02:57]}  Be7 {[%clk 0:03:02]} 9. f4 {[%clk 0:02:54]}  O-O {[%clk 0:03:02]} 10. e5 {[%clk 0:02:55]}  dxe5 {[%clk 0:02:53]} 11. fxe5 {[%clk 0:02:55]}  Nfd7 {[%clk 0:02:48]} 12. Be3 {[%clk 0:02:54]}  Nxe5 {[%clk 0:02:43]} 13. Qh5 {[%clk 0:02:51]}  Ng6 {[%clk 0:02:03]} 14. Rad1 {[%clk 0:02:24]}  Qc7 {[%clk 0:01:59]} 15. Qf3 {[%clk 0:01:07]}  Bb7 {[%clk 0:01:48]} 16. Qh3 {[%clk 0:01:07]}  Nc6 {[%clk 0:01:34]} 17. Nxc6 {[%clk 0:00:20]}  Qxc6 {[%clk 0:01:30]} 18. Rf3 {[%clk 0:00:17]}  Bc5 {[%clk 0:01:22]} 19. Rdf1 {[%clk 0:00:10]}  Nf4 {[%clk 0:01:14]} 20. Qg4 {[%clk 0:00:03]}  Bxe3+ {[%clk 0:00:59]} 21. Rxe3 {[%clk 0:00:04]}  h5 {[%clk 0:00:57]} 0-1


[Site "https://www.chess.com"]